bitfinex/quotes_BTCUSD_20220101
["timestamp","ask_amount","ask_price","bid_price","bid_amount"]
[1641003003800,0.81498241,46825.0,46824.0,0.00742703]
[1641003004001,0.79255824,46825.0,46824.0,0.00742703]
[1641003004244,0.7907547,46825.0,46824.0,0.00742703]
[1641003005248,0.81198868,46825.0,46824.0,0.00742703]
[1641003005447,0.79270009,46825.0,46824.0,0.00742703]
[1641003006249,0.79228033,46825.0,46824.0,0.00742703]
[1641003007252,0.81324383,46825.0,46824.0,0.00742703]
[1641003007453,0.79242961,46825.0,46824.0,0.00742703]
[1641003008095,0.81256517,46825.0,46824.0,0.00742703]
[1641003008296,0.79160167,46825.0,46824.0,0.00742703]
[1641003009293,0.79316648,46825.0,46824.0,0.00742703]
[1641003010293,1.01437795,46825.0,46824.0,0.00742703]
[1641003010494,0.79267758,46825.0,46824.0,0.00742703]
[1641003010695,0.99267758,46825.0,46824.0,0.00742703]
[1641003011294,0.99043289,46825.0,46824.0,0.00742703]
[1641003012141,1.45043289,46825.0,46824.0,0.00742703]
[1641003012840,1.47049663,46825.0,46824.0,0.00742703]
[1641003013041,1.45152985,46825.0,46824.0,0.00742703]
[1641003013241,1.83991103,46825.0,46824.0,0.00119703]
[1641003013446,1.83991103,46825.0,46822.0,0.04681524]
[1641003013447,1.37,46823.0,46822.0,0.04681524]
[1641003013643,1.90657799,46823.0,46822.0,0.04681524]
[1641003013845,1.95657799,46823.0,46822.0,0.04681524]
[1641003014045,2.28237141,46823.0,46822.0,0.04681524]
[1641003014347,2.30301785,46823.0,46822.0,0.04681524]
[1641003014546,2.73871866,46823.0,46822.0,0.04681524]
[1641003015347,2.75916859,46823.0,46822.0,0.04681524]
[1641003015596,1.42464362,46821.0,46820.0,0.00997547]
[1641003015794,1.81122162,46821.0,46820.0,0.00997547]
[1641003016000,1.91122162,46821.0,46820.0,0.00997547]
[1641003016195,1.93077957,46821.0,46820.0,0.00997547]
[1641003016394,2.23127919,46821.0,46820.0,0.00997547]
[1641003016795,2.73127919,46821.0,46820.0,0.00997547]
[1641003017194,2.74979998,46821.0,46820.0,0.00997547]
[1641003017395,2.53024203,46821.0,46820.0,0.00997547]
[1641003018195,2.55121378,46821.0,46820.0,0.00997547]
[1641003018396,2.53269299,46821.0,46820.0,0.00997547]
[1641003019257,2.73269299,46821.0,46820.0,0.00997547]
[1641003019457,2.73338273,46821.0,46820.0,0.00997547]
[1641003020263,2.75324053,46821.0,46819.0,0.13075092]
[1641003020461,2.49442423,46820.0,46819.0,0.13075092]
[1641003020660,2.64442423,46820.0,46819.0,0.13075092]
[1641003021163,1.47442423,46820.0,46819.0,0.13075092]
[1641003021364,1.49587618,46820.0,46819.0,0.13075092]
[1641003022362,1.51469444,46820.0,46819.0,0.13075092]
[1641003022563,1.49273934,46820.0,46819.0,0.13075092]
[1641003022764,1.59321777,46820.0,46819.0,0.13075092]
[1641003023208,1.97321777,46820.0,46819.0,0.13075092]
[1641003023407,1.97614288,46820.0,46819.0,0.13075092]
[1641003023606,1.59614288,46820.0,46819.0,0.13075092]
[1641003024411,1.31668669,46820.0,46819.0,0.13075092]
[1641003024608,1.02886517,46820.0,46819.0,0.13075092]
[1641003024809,0.52886517,46820.0,46819.0,0.13075092]
[1641003025308,0.55060375,46820.0,46819.0,0.13075092]
[1641003025512,0.35831658,46820.0,46819.0,0.13075092]
[1641003026511,0.35556625,46820.0,46819.0,0.13075092]
[1641003026755,0.40556625,46820.0,46819.0,0.13075092]
[1641003026954,0.55556625,46820.0,46819.0,0.13075092]
[1641003027357,0.57585017,46820.0,46819.0,0.13075092]
[1641003027557,0.55686192,46820.0,46819.0,0.13075092]
[1641003028356,0.57711446,46820.0,46819.0,0.13075092]
[1641003028556,0.55683054,46820.0,46819.0,0.13075092]
[1641003029356,0.57788314,46820.0,46819.0,0.13075092]
[1641003029557,0.5576306,46820.0,46819.0,0.13075092]
[1641003029960,0.5576306,46820.0,46819.0,0.21670925]
[1641003030159,0.5576306,46820.0,46819.0,0.13075092]
[1641003030359,0.5576306,46820.0,46819.0,0.19484047]
[1641003030360,0.57847171,46820.0,46819.0,0.19484047]
[1641003030618,0.55741911,46820.0,46819.0,0.19484047]
[1641003031318,0.55841911,46820.0,46819.0,0.19484047]
[1641003031918,0.5794931,46820.0,46819.0,0.19484047]
[1641003032118,0.55865199,46820.0,46819.0,0.19484047]
[1641003032519,0.55865199,46820.0,46819.0,0.19603763]
[1641003033018,0.58010223,46820.0,46819.0,0.19603763]
[1641003033218,0.55902824,46820.0,46819.0,0.19603763]
[1641003033417,0.57854717,46820.0,46819.0,0.19603763]
[1641003033618,0.55709693,46820.0,46819.0,0.19603763]
[1641003034482,0.57756906,46820.0,46819.0,0.19603763]
[1641003034684,0.55805013,46820.0,46819.0,0.19603763]
[1641003035285,0.57976106,46820.0,46819.0,0.19603763]
[1641003035485,0.55928893,46820.0,46819.0,0.13194808]
[1641003036485,0.55938918,46820.0,46819.0,0.13194808]
[1641003036685,0.55938918,46820.0,46819.0,0.21790641]
[1641003036889,0.55938918,46820.0,46819.0,0.13194808]
[1641003037288,0.55938918,46820.0,46819.0,0.21740173]
[1641003037491,0.58037591,46820.0,46819.0,0.21740173]
[1641003037691,0.58037591,46820.0,46819.0,0.13194808]
[1641003037893,0.58037591,46820.0,46819.0,0.19603763]
[1641003038495,0.5561797,46820.0,46819.0,0.19603763]
[1641003039195,0.3561797,46820.0,46819.0,0.19603763]
[1641003039397,0.37448406,46820.0,46819.0,0.19603763]
[1641003039594,0.01930436,46820.0,46819.0,0.19603763]
[1641003040596,0.001,46820.0,46819.0,0.19603763]
[1641003042051,0.00218826,46820.0,46819.0,0.19603763]
[1641003052850,0.00218826,46820.0,46819.0,0.94603763]
[1641003053811,1.20218826,46820.0,46819.0,0.94603763]
[1641003054211,1.30218826,46820.0,46819.0,0.94603763]
[1641003055015,1.32074391,46820.0,46819.0,0.94603763]
[1641003055214,1.22074391,46820.0,46819.0,0.19603763]
[1641003055413,1.33945448,46820.0,46819.0,0.19603763]
[1641003055611,1.32089883,46820.0,46819.0,0.19603763]
[1641003056413,1.22089883,46820.0,46819.0,0.19603763]
[1641003056616,1.22235484,46820.0,46819.0,0.19603763]
[1641003057456,1.24389487,46820.0,46819.0,0.19603763]
[1641003057661,1.22372829,46820.0,46819.0,0.57603763]
[1641003058558,1.24536399,46820.0,46819.0,0.57603763]
[1641003058757,1.22382396,46820.0,46819.0,0.95603763]
[1641003059460,1.24206574,46820.0,46819.0,1.5612928]
[1641003059662,1.22043004,46820.0,46819.0,1.5612928]
[1641003060266,1.22043004,46820.0,46819.0,1.6612928]
[1641003060515,1.23999924,46820.0,46819.0,1.6612928]
[1641003060913,1.20218826,46820.0,46819.0,1.6612928]
[1641003061113,1.20218826,46820.0,46819.0,1.05603763]
[1641003061512,1.22091852,46820.0,46819.0,1.05603763]
[1641003062114,1.22091852,46820.0,46819.0,1.7836723]
[1641003062513,1.19222704,46820.0,46819.0,1.8370593]
[1641003062714,1.17349678,46820.0,46819.0,1.8370593]
[1641003063515,1.19399288,46820.0,46819.0,1.8370593]
[1641003063815,1.15214823,46820.0,46819.0,1.8370593]
[1641003064652,1.17120444,46820.0,46819.0,1.8370593]
[1641003064853,1.17120444,46820.0,46819.0,1.10942463]
[1641003065654,1.19179919,46820.0,46819.0,1.10942463]
[1641003065854,1.17274298,46820.0,46819.0,1.10942463]
[1641003066455,1.17274298,46820.0,46819.0,2.32321302]
[1641003066657,1.19376905,46820.0,46819.0,1.10942463]
[1641003066856,1.1731743,46820.0,46819.0,1.10942463]
[1641003067057,1.1731743,46820.0,46819.0,2.32321302]
[1641003067458,1.1731743,46820.0,46819.0,2.22321302]
[1641003067656,1.1933517,46820.0,46819.0,1.83094881]
[1641003067857,1.15214823,46820.0,46819.0,1.83094881]
[1641003068706,1.15214823,46820.0,46819.0,1.10942463]
[1641003068707,1.17189311,46820.0,46819.0,1.10942463]
[1641003068908,1.17189311,46820.0,46819.0,3.16493282]
[1641003069707,1.19028041,46820.0,46819.0,3.16493282]
[1641003070109,0.92179297,46820.0,46819.0,3.16493282]
[1641003070309,0.78739528,46820.0,46819.0,3.16493282]
[1641003070507,0.7492631,46820.0,46819.0,3.16493282]
[1641003070711,0.00628422,46820.0,46819.0,3.57619049]
[1641003071009,0.00861,46825.0,46822.0,0.03684059]
[1641003071210,0.00861,46825.0,46824.0,1.27663546]
[1641003071862,0.86843461,46830.0,46824.0,1.59047291]
[1641003072062,0.86843461,46830.0,46825.0,0.46915896]
[1641003072462,0.017219,46826.0,46825.0,1.65915896]
[1641003072865,0.017219,46826.0,46825.0,2.87288894]
[1641003073268,0.86966309,46830.0,46829.0,1.5154789]
[1641003073466,0.86966309,46830.0,46829.0,1.7021371]
[1641003073665,0.88018093,46830.0,46829.0,1.7021371]
[1641003073866,0.8693502,46830.0,46829.0,1.7021371]
[1641003074066,0.8693502,46830.0,46829.0,1.80887903]
[1641003074466,0.8779602,46830.0,46829.0,1.80887903]
[1641003074666,0.88770348,46830.0,46829.0,1.80887903]
[1641003074866,0.87718564,46830.0,46829.0,1.80887903]
[1641003075512,0.87718564,46830.0,46829.0,2.52889201]
[1641003075706,0.8866759,46830.0,46829.0,2.52889201]
[1641003075909,0.87693262,46830.0,46829.0,2.52889201]
[1641003076708,0.88707286,46830.0,46829.0,2.52889201]
[1641003076908,0.8775826,46830.0,46829.0,2.52889201]
[1641003077511,0.8775826,46830.0,46829.0,1.80887903]
[1641003078013,0.87817394,46830.0,46829.0,1.80887903]
[1641003078611,0.87817394,46830.0,46829.0,1.81007593]
[1641003078811,0.87733306,46830.0,46829.0,1.656705]
[1641003079011,0.87733306,46830.0,46829.0,1.3312261]
[1641003079267,0.87733306,46830.0,46829.0,0.1412261]
[1641003079669,0.8869148,46830.0,46829.0,0.86003304]
[1641003079868,0.8770241,46830.0,46829.0,0.86003304]
[1641003080469,0.8770241,46830.0,46829.0,0.43996591]
[1641003080868,0.89671275,46830.0,46829.0,0.13996591]
[1641003081070,0.88713101,46830.0,46829.0,0.13996591]
[1641003081469,0.88713101,46830.0,46829.0,0.43996591]
[1641003081669,0.90661364,46830.0,46829.0,0.43996591]
[1641003081870,0.88692499,46830.0,46829.0,0.43996591]
[1641003082068,0.88742499,46830.0,46829.0,0.43996591]
[1641003082471,0.88742499,46830.0,46829.0,0.73996591]
[1641003082668,0.90868141,46830.0,46829.0,0.73996591]
[1641003082868,0.88919878,46830.0,46829.0,0.43996591]
[1641003083801,0.90865999,46830.0,46829.0,0.43996591]
[1641003084104,0.88740357,46830.0,46829.0,0.43996591]
[1641003084501,0.88740357,46830.0,46829.0,0.73996591]
[1641003085404,0.90706458,46830.0,46829.0,0.73996591]
[1641003085604,0.88760337,46830.0,46829.0,0.73996591]
[1641003085803,0.90578731,46830.0,46829.0,0.73996591]
[1641003086004,0.90578731,46830.0,46829.0,0.99068926]
[1641003086207,0.90553025,46830.0,46829.0,1.58068926]
[1641003086604,0.8676853,46830.0,46829.0,0.99068926]
[1641003086858,0.88864117,46830.0,46829.0,0.73996591]
[1641003087059,0.88864117,46830.0,46829.0,0.39122095]
[1641003087261,0.88864117,46830.0,46829.0,0.0545679]
[1641003087461,1.03864117,46830.0,46829.0,0.0011969]
[1641003087659,1.08864117,46830.0,46829.0,0.0011969]
[1641003087861,1.00888864,46830.0,46829.0,0.72126403]
[1641003088058,1.00888864,46830.0,46829.0,0.80668666]
[1641003088059,1.08793277,46830.0,46829.0,0.80668666]
[1641003088259,1.37707339,46830.0,46829.0,0.80722236]
[1641003088661,1.39614477,46830.0,46829.0,0.80722236]
[1641003088865,1.03675668,46830.0,46829.0,0.80722236]
[1641003089062,1.03675668,46830.0,46829.0,0.6899495]
[1641003089662,1.05521711,46830.0,46829.0,0.08715523]
[1641003089862,1.00521711,46830.0,46829.0,0.08715523]
[1641003090062,0.98614573,46830.0,46829.0,0.6899495]
[1641003090814,1.00626494,46830.0,46829.0,0.08715523]
[1641003091017,0.98780451,46830.0,46829.0,0.80722236]
[1641003091521,0.98780451,46830.0,46829.0,0.08715523]
[1641003091522,0.88780451,46830.0,46829.0,0.08715523]
[1641003091817,0.90865034,46830.0,46829.0,0.08715523]
[1641003092015,0.88853113,46830.0,46829.0,0.08715523]
[1641003092216,0.88853113,46830.0,46829.0,2.14085509]
[1641003092417,0.98853113,46830.0,46829.0,2.14085509]
[1641003092816,0.98853113,46830.0,46829.0,0.08715523]
[1641003092817,1.00895993,46830.0,46829.0,0.08715523]
[1641003093018,0.9881141,46830.0,46829.0,0.08715523]
[1641003094260,0.9881141,46830.0,46829.0,0.68715523]
[1641003094459,0.90817977,46830.0,46829.0,1.41151802]
[1641003094659,0.88775097,46830.0,46829.0,1.41151802]
[1641003094857,0.90962996,46830.0,46829.0,0.81151802]
[1641003095058,0.88956429,46830.0,46829.0,0.08836019]
[1641003095260,0.88956429,46830.0,46829.0,0.45836019]
[1641003095859,0.9105906,46830.0,46829.0,0.45836019]
[1641003096060,0.88871161,46830.0,46829.0,2.51198618]
[1641003096261,0.88871161,46830.0,46829.0,0.45836019]
[1641003096862,0.90767197,46830.0,46829.0,0.45836019]
[1641003097060,0.88664566,46830.0,46829.0,0.45836019]
[1641003097262,0.88664566,46830.0,46829.0,0.87836019]
[1641003097460,0.88664566,46830.0,46829.0,2.93197915]
[1641003097861,0.90736112,46830.0,46829.0,0.87836019]
[1641003098113,0.88813055,46830.0,46829.0,2.51197915]
[1641003098514,0.98813055,46830.0,46829.0,2.51197915]
[1641003098711,0.98813055,46830.0,46829.0,0.08836019]
[1641003098912,1.00938217,46830.0,46829.0,0.08836019]
[1641003099113,0.98866671,46830.0,46829.0,0.08836019]
[1641003099313,0.98866671,46830.0,46829.0,1.17113437]
[1641003099913,1.00701715,46830.0,46829.0,0.44836019]
[1641003100114,0.98576553,46830.0,46829.0,0.44836019]
[1641003100913,1.00615628,46830.0,46829.0,0.44836019]
[1641003101115,0.98780584,46830.0,46829.0,0.44836019]
[1641003101753,1.00643603,46830.0,46829.0,1.17113437]
[1641003101954,0.98604528,46830.0,46829.0,1.17113437]
[1641003102355,0.98604528,46830.0,46829.0,0.81113437]
[1641003102856,1.0061806,46830.0,46829.0,0.80992941]
[1641003103056,0.98755041,46830.0,46829.0,0.80992941]
[1641003103558,0.98755041,46830.0,46829.0,0.08715523]
[1641003103957,1.00866815,46830.0,46829.0,0.08715523]
[1641003104157,0.98853283,46830.0,46829.0,0.08715523]
[1641003105058,1.00889397,46830.0,46829.0,0.08715523]
[1641003105817,1.02965929,46830.0,46829.0,0.08715523]
[1641003106117,0.98818041,46830.0,46829.0,0.08715523]
[1641003106916,1.0074343,46830.0,46829.0,0.08715523]
[1641003107217,0.98666898,46830.0,46829.0,0.08715523]
[1641003107816,1.00714916,46830.0,46829.0,0.08715523]
[1641003108021,0.98789527,46830.0,46829.0,0.08715523]
[1641003108819,1.00907638,46830.0,46829.0,0.08715523]
[1641003109021,0.9885962,46830.0,46829.0,0.08715523]
[1641003109273,0.9885962,46830.0,46829.0,0.72397108]
[1641003109474,0.9885962,46830.0,46829.0,0.78803668]
[1641003109876,1.0077442,46830.0,46829.0,0.72397108]
[1641003110081,0.98656309,46830.0,46829.0,0.72397108]
[1641003110678,0.98656309,46830.0,46829.0,0.0011969]
[1641003110980,0.98764725,46830.0,46829.0,0.0011969]
[1641003111178,0.98764725,46830.0,46829.0,0.68995106]
[1641003111577,0.98764725,46830.0,46829.0,0.66806175]
[1641003111976,1.00617461,46830.0,46829.0,0.60399273]
[1641003112176,1.03594245,46830.0,46829.0,0.60399273]
[1641003112476,1.03594245,46830.0,46829.0,0.72397108]
[1641003112677,1.03594245,46830.0,46829.0,0.80992941]
[1641003112876,1.0563609,46830.0,46829.0,0.80992941]
[1641003113111,1.0563609,46830.0,46829.0,0.69055796]
[1641003113112,1.03783354,46830.0,46829.0,0.69055796]
[1641003114112,1.03783354,46830.0,46829.0,0.08715523]
[1641003114513,1.05621453,46830.0,46829.0,0.08715523]
[1641003114813,1.05621453,46830.0,46829.0,0.80992941]
[1641003115013,1.05621453,46830.0,46829.0,0.08715523]
[1641003115217,1.00621453,46830.0,46829.0,0.08715523]
[1641003115415,1.02800861,46830.0,46829.0,0.08715523]
[1641003115614,0.88920917,46830.0,46829.0,0.08715523]
[1641003116013,1.05968979,46830.0,46829.0,0.81085177]
[1641003116213,1.03789571,46830.0,46829.0,0.08715523]
[1641003117658,1.0572825,46830.0,46829.0,0.08715523]
[1641003117863,1.03680188,46830.0,46829.0,0.08715523]
[1641003118060,1.05771941,46830.0,46829.0,0.08715523]
[1641003119060,1.07654207,46830.0,46829.0,0.08715523]
[1641003119259,0.98623775,46830.0,46829.0,0.08715523]
[1641003119460,0.88623775,46830.0,46829.0,0.08715523]
[1641003120062,0.89613446,46830.0,46829.0,0.58715523]
[1641003120262,0.8773118,46830.0,46829.0,0.08715523]
[1641003120903,0.8773118,46830.0,46829.0,0.81101877]
[1641003121119,0.98923858,46830.0,46829.0,0.81101877]
[1641003121304,0.0002,46845.0,46844.0,0.09021357]
[1641003121504,0.0004,46852.0,46848.0,2.20269862]
[1641003121706,0.0004,46853.0,46852.0,0.12239339]
[1641003121905,0.0004,46853.0,46852.0,1.80742877]
[1641003122106,0.0004,46853.0,46852.0,1.52712499]
[1641003122304,0.00901,46853.0,46852.0,1.61308332]
[1641003122707,0.00901,46853.0,46852.0,1.67675332]
[1641003122908,0.00901,46853.0,46852.0,1.69661229]
[1641003124654,0.00901,46853.0,46852.0,1.71784568]
[1641003124855,0.00901,46853.0,46852.0,1.69798671]
[1641003125057,0.00901,46853.0,46852.0,1.71733299]
[1641003125253,0.00901,46853.0,46852.0,1.6988742]
[1641003126055,0.00901,46853.0,46852.0,1.72037173]
[1641003126256,0.00901,46853.0,46852.0,1.70102545]
[1641003126958,0.00901,46853.0,46852.0,0.49102545]
[1641003127157,0.00901,46853.0,46852.0,0.35968261]
[1641003127358,0.00901,46853.0,46852.0,2.28208166]
[1641003127559,0.00901,46853.0,46852.0,2.21804341]
[1641003128013,0.00901,46853.0,46852.0,1.02396945]
[1641003128210,0.00901,46853.0,46852.0,0.74354672]
[1641003128608,0.01019741,46853.0,46852.0,0.74354672]
[1641003129008,0.01019741,46853.0,46852.0,0.76213492]
[1641003129208,0.01019741,46853.0,46852.0,0.74313162]
[1641003129710,0.01019741,46853.0,46852.0,0.14375619]
[1641003130112,0.01880741,46853.0,46852.0,0.16377524]
[1641003130310,0.01880741,46853.0,46852.0,0.14518704]
[1641003131510,0.01880741,46853.0,46852.0,0.12516799]
[1641003132563,0.01019741,46853.0,46852.0,0.12516799]
[1641003133166,0.0099404,46853.0,46852.0,0.12516799]
[1641003137407,0.0185504,46853.0,46852.0,0.12516799]
[1641003140250,0.00999741,46853.0,46852.0,0.12516799]
[1641003140751,0.69999741,46853.0,46852.0,0.12516799]
[1641003140953,1.07330715,46853.0,46852.0,0.12516799]
[1641003141156,1.27330715,46853.0,46852.0,0.12516799]
[1641003141850,1.70582864,46853.0,46852.0,0.12516799]
[1641003142053,0.95178697,46853.0,46852.0,0.12516799]
[1641003142851,1.29178697,46853.0,46852.0,0.12516799]
[1641003143103,1.01582864,46853.0,46852.0,0.12516799]
[1641003143505,0.95178697,46853.0,46852.0,0.12516799]
[1641003144103,0.80178697,46853.0,46852.0,0.12516799]
[1641003144303,0.75178697,46853.0,46852.0,0.12516799]
[1641003144502,0.81582864,46853.0,46852.0,0.12516799]
[1641003145106,0.81589765,46853.0,46852.0,0.12516799]
[1641003145306,0.75185598,46853.0,46852.0,0.12516799]
[1641003145507,0.95185598,46853.0,46852.0,0.12516799]
[1641003145807,0.95185598,46853.0,46852.0,0.12526978]
[1641003147069,1.01589765,46853.0,46852.0,0.12526978]
[1641003147471,1.00728765,46853.0,46852.0,0.12526978]
[1641003147671,0.94324598,46853.0,46852.0,0.12526978]
[1641003148675,1.00728765,46853.0,46852.0,0.12526978]
[1641003149375,1.01589765,46853.0,46852.0,0.12526978]
[1641003149574,1.05185597,46853.0,46852.0,0.12526978]
[1641003149978,1.11589764,46853.0,46852.0,0.12526978]
[1641003150376,1.05185597,46853.0,46852.0,0.12526978]
[1641003150818,1.11589764,46853.0,46852.0,0.12526978]
[1641003151431,0.95185598,46853.0,46852.0,0.12526978]
[1641003151623,0.58337616,46853.0,46852.0,0.12526978]
[1641003151823,0.49664442,46853.0,46852.0,0.12526978]
[1641003152022,0.01006642,46853.0,46852.0,0.12526978]
[1641003156253,0.34664442,46853.0,46852.0,0.12526978]
[1641003156455,0.39664442,46853.0,46852.0,0.12526978]
[1641003156653,0.54664442,46853.0,46852.0,0.12526978]
[1641003159418,0.53803442,46853.0,46852.0,0.12526978]
[1641003162976,0.53803442,46853.0,46852.0,0.21122811]
[1641003165523,0.55525442,46853.0,46852.0,0.21122811]
[1641003165723,0.21867642,46853.0,46852.0,0.21122811]
[1641003165923,0.06867642,46853.0,46852.0,0.21122811]
[1641003166126,0.01867642,46853.0,46852.0,0.21122811]
[1641003167129,0.00867642,46853.0,46852.0,0.21122811]
[1641003172875,0.00867642,46853.0,46852.0,0.48111805]
[1641003173122,0.00867642,46853.0,46852.0,0.40408345]
[1641003173323,0.00867642,46853.0,46852.0,1.07408345]
[1641003173721,0.00867642,46853.0,46852.0,0.40408345]
[1641003173925,0.00867642,46853.0,46852.0,0.45744245]
[1641003174422,0.00867642,46853.0,46852.0,0.4771549]
[1641003175422,0.00867642,46853.0,46852.0,0.30381945]
[1641003176228,0.00867642,46853.0,46852.0,0.26583583]
[1641003176427,0.00867642,46853.0,46852.0,0.28696825]
[1641003177671,0.00867642,46853.0,46852.0,0.26583583]
[1641003180371,0.00867642,46853.0,46852.0,0.1798775]
[1641003180609,0.00841953,46853.0,46852.0,0.1798775]
[1641003180809,0.00841953,46853.0,46852.0,0.9898775]
[1641003181012,0.00841953,46853.0,46852.0,0.1798775]
[1641003181508,0.00841953,46853.0,46852.0,0.19810334]
[1641003182307,0.00841953,46853.0,46852.0,0.54810334]
[1641003182712,0.00841953,46853.0,46852.0,0.5298775]
[1641003183511,0.00841953,46853.0,46852.0,0.79906036]
[1641003183912,0.00891,46854.0,46852.0,0.44906036]
[1641003184268,0.00891,46854.0,46852.0,0.1798775]
[1641003184468,0.00891,46854.0,46852.0,0.19862264]
[1641003186071,6.315e-05,46853.0,46852.0,0.19862264]
[1641003186272,6.315e-05,46853.0,46852.0,0.1798775]
[1641003187473,0.00867315,46853.0,46852.0,0.1798775]
[1641003187673,0.00867315,46853.0,46852.0,0.42802817]
[1641003188313,0.00867315,46853.0,46852.0,0.92802817]
[1641003188516,0.00867315,46853.0,46852.0,0.94753841]
[1641003189611,0.00867315,46853.0,46852.0,0.96630846]
[1641003189816,0.00867315,46853.0,46852.0,0.94679822]
[1641003190214,0.00867315,46853.0,46852.0,0.69864755]
[1641003190612,0.00867315,46853.0,46852.0,0.71733484]
[1641003190814,0.00867315,46853.0,46852.0,0.95514284]
[1641003191314,0.00867315,46853.0,46852.0,1.63514284]
[1641003191513,0.00867315,46853.0,46852.0,0.97651769]
[1641003191759,0.00867315,46853.0,46852.0,0.9578304]
[1641003192160,0.00867315,46853.0,46852.0,1.3178304]
[1641003192561,0.00867315,46853.0,46852.0,1.33872709]
[1641003192761,0.00867315,46853.0,46852.0,1.31735224]
[1641003193662,0.00867315,46853.0,46852.0,1.33611967]
[1641003193867,0.00867315,46853.0,46852.0,1.31522298]
[1641003194363,0.00867315,46853.0,46852.0,0.95522298]
[1641003194565,0.00867315,46853.0,46852.0,0.97434794]
[1641003194763,0.00986054,46853.0,46852.0,0.95558051]
[1641003195365,0.00986054,46853.0,46852.0,0.69900246]
[1641003195633,0.00986054,46853.0,46852.0,0.72074143]
[1641003195933,0.00986054,46853.0,46852.0,0.70161647]
[1641003197129,0.00986054,46853.0,46852.0,0.66767573]
[1641003197331,0.00986054,46853.0,46852.0,0.64593676]
[1641003197629,0.00986054,46853.0,46852.0,0.66679015]
[1641003197828,0.00986054,46853.0,46852.0,0.14612317]
[1641003198832,0.00986054,46853.0,46852.0,0.12526978]
[1641003200060,0.31405726,46853.0,46852.0,0.12526978]
[1641003200260,0.36405726,46853.0,46852.0,0.12526978]
[1641003200460,0.51405726,46853.0,46852.0,0.12526978]
[1641003201459,0.46405726,46853.0,46852.0,0.12526978]
[1641003202565,0.51405726,46853.0,46852.0,0.12526978]
[1641003205531,0.46405726,46853.0,46852.0,0.12526978]
[1641003205731,0.15986054,46853.0,46852.0,0.12526978]
[1641003205935,0.00986054,46853.0,46852.0,0.12526978]
[1641003206975,0.00986054,46853.0,46852.0,0.37833447]
[1641003207774,0.00986054,46853.0,46852.0,0.39949016]
[1641003208678,0.00986054,46853.0,46852.0,0.42056876]
[1641003208876,0.00986054,46853.0,46852.0,1.13981927]
[1641003209076,0.00986054,46853.0,46852.0,0.92056876]
[1641003209675,0.00986054,46853.0,46852.0,0.93883781]
[1641003209876,0.00986054,46853.0,46852.0,0.64353883]
[1641003210820,0.00986054,46853.0,46852.0,0.66254466]
[1641003211023,0.00986054,46853.0,46852.0,0.64427561]
[1641003211721,0.00986054,46853.0,46852.0,0.16516954]
[1641003211921,0.00986054,46853.0,46852.0,0.14616371]
[1641003212920,0.00986054,46853.0,46852.0,0.12526978]
[1641003214873,0.00986054,46853.0,46852.0,0.46649444]
[1641003215071,0.00986054,46853.0,46852.0,0.12649444]
[1641003220730,0.00986054,46853.0,46852.0,0.37670372]
[1641003221129,0.00986054,46853.0,46852.0,0.37660193]
[1641003221778,0.00986054,46853.0,46852.0,0.39837864]
[1641003222178,0.00986054,46853.0,46852.0,1.11526665]
[1641003222779,0.00986054,46853.0,46852.0,1.13355187]
[1641003223180,0.00986054,46853.0,46852.0,1.09348994]
[1641003223780,0.00960366,46853.0,46852.0,1.11216903]
[1641003224187,0.00960366,46853.0,46852.0,1.11227082]
[1641003224883,0.00960366,46853.0,46852.0,1.13347463]
[1641003225084,0.00960366,46853.0,46852.0,1.11479554]
[1641003225718,0.00960366,46853.0,46852.0,0.86458626]
[1641003225917,0.00960366,46853.0,46852.0,1.13391426]
[1641003226116,0.00960366,46853.0,46852.0,1.11271045]
[1641003226420,0.00960366,46853.0,46852.0,0.39582244]
[1641003226820,0.00960366,46853.0,46852.0,0.41608534]
[1641003227016,0.00960366,46853.0,46852.0,0.39600157]
[1641003227217,0.00960366,46853.0,46852.0,0.99588641]
[1641003227417,0.00960366,46853.0,46852.0,0.74664218]
[1641003227817,0.00960366,46853.0,46852.0,0.76486735]
[1641003228019,0.00960366,46853.0,46852.0,0.74460445]
[1641003228817,0.00960366,46853.0,46852.0,0.76437477]
[1641003229019,0.00960366,46853.0,46852.0,0.99750087]
[1641003229283,0.00960366,46853.0,46852.0,0.39761603]
[1641003229587,0.00960366,46853.0,46852.0,0.14626476]
[1641003229985,0.00960366,46853.0,46852.0,0.16531974]
[1641003230185,0.00960366,46853.0,46852.0,0.14554942]
[1641003231186,0.00960366,46853.0,46852.0,0.12649444]
[1641003231589,0.00960366,46853.0,46852.0,0.37479818]
[1641003233058,0.00960366,46853.0,46852.0,0.39673279]
[1641003233852,0.00960366,46853.0,46852.0,0.41643352]
[1641003234253,0.00960366,46853.0,46852.0,0.39449891]
[1641003235054,0.00960366,46853.0,46852.0,0.41310065]
[1641003235256,0.00960366,46853.0,46852.0,0.89339992]
[1641003236053,0.00960366,46853.0,46852.0,0.91326066]
[1641003236254,0.00960366,46853.0,46852.0,0.89465892]
[1641003236892,0.00960366,46853.0,46852.0,0.91631245]
[1641003237292,0.00960366,46853.0,46852.0,0.89645171]
[1641003237995,0.00960366,46853.0,46852.0,0.9150605]
[1641003238193,0.00960366,46853.0,46852.0,0.89340697]
[1641003238993,0.00960366,46853.0,46852.0,0.91193879]
[1641003239194,0.00960366,46853.0,46852.0,0.89333]
[1641003239997,0.00960366,46853.0,46852.0,0.91153699]
[1641003240192,0.00960366,46853.0,46852.0,0.89300517]
[1641003240832,0.00986054,46853.0,46852.0,0.64470143]
[1641003241132,0.00986054,46853.0,46852.0,0.66633633]
[1641003241332,0.00986054,46853.0,46852.0,0.64812934]
[1641003241930,0.00986054,46853.0,46852.0,0.66855663]
[1641003242735,0.00986054,46853.0,46852.0,0.62649444]
[1641003242933,0.00986054,46853.0,46852.0,0.64480235]
[1641003244036,0.00986054,46853.0,46852.0,0.66604352]
[1641003244269,0.00986054,46853.0,46852.0,0.64773561]
[1641003245074,0.00986054,46853.0,46852.0,0.66586805]
[1641003245269,0.00986054,46853.0,46852.0,0.64462688]
[1641003245470,0.00986054,46853.0,46852.0,0.63962688]
[1641003246169,0.00986054,46853.0,46852.0,0.66134506]
[1641003246368,0.00986054,46853.0,46852.0,0.64321262]
[1641003246968,0.00986054,46853.0,46852.0,0.66511507]
[1641003247168,0.00986054,46853.0,46852.0,0.64339689]
[1641003248026,0.00986054,46853.0,46852.0,0.66209751]
[1641003248219,0.00986054,46853.0,46852.0,0.1439704]
[1641003249323,0.00986054,46853.0,46852.0,0.12526978]
[1641003251869,0.00986054,46853.0,46852.0,0.72452515]
[1641003252869,0.00986054,46853.0,46852.0,0.12526978]
[1641003253070,0.00986054,46853.0,46852.0,0.1474471]
[1641003254271,0.00986054,46853.0,46852.0,0.12646634]
[1641003258238,0.00986054,46853.0,46852.0,0.72642246]
[1641003259266,0.00986054,46853.0,46852.0,0.74512332]
[1641003259868,0.00986054,46853.0,46852.0,0.1451672]
[1641003260068,0.00986054,46853.0,46852.0,0.16327104]
[1641003260469,0.00986054,46853.0,46852.0,0.14457018]
[1641003261274,0.00986054,46853.0,46852.0,0.12646634]
[1641003263126,0.29958039,46861.0,46853.0,0.33]
[1641003263329,0.39958039,46861.0,46853.0,0.33]